[Event "Titled Tuesday Blitz November 29 Late 2022"]
[White "Hambleton, Aman"]
[Black "Bilan, Danila"]
[WhiteFideId "2606577"]
[BlackFideId "24161918"]
[WhiteElo "2538"]
[BlackElo "2173"]
[Result "1-0"]
[Round "04"]
[TimeControl "180+1"]
[Date "2022.11.30"]
[WhiteClock "0:00:15"]
[BlackClock "0:00:11"]

1. d4 {[%clk 0:03:00]}  d5 {[%clk 0:02:57]} 2. Bf4 {[%clk 0:03:01]}  Nf6 {[%clk 0:02:56]} 3. e3 {[%clk 0:03:01]}  c5 {[%clk 0:02:55]} 4. c3 {[%clk 0:03:01]}  Nc6 {[%clk 0:02:54]} 5. Nd2 {[%clk 0:03:01]}  Qb6 {[%clk 0:02:53]} 6. Qb3 {[%clk 0:03:01]}  c4 {[%clk 0:02:50]} 7. Qc2 {[%clk 0:03:02]}  Nh5 {[%clk 0:02:47]} 8. Bg5 {[%clk 0:02:44]}  h6 {[%clk 0:02:45]} 9. Bh4 {[%clk 0:02:43]}  g5 {[%clk 0:02:45]} 10. Be2 {[%clk 0:02:42]}  Ng7 {[%clk 0:02:33]} 11. Bg3 {[%clk 0:02:42]}  f5 {[%clk 0:02:33]} 12. Ngf3 {[%clk 0:02:12]}  e6 {[%clk 0:02:16]} 13. Ne5 {[%clk 0:02:02]}  Nxe5 {[%clk 0:02:09]} 14. Bxe5 {[%clk 0:02:01]}  Qc6 {[%clk 0:02:04]} 15. h4 {[%clk 0:01:34]}  Rg8 {[%clk 0:01:44]} 16. hxg5 {[%clk 0:01:31]}  hxg5 {[%clk 0:01:45]} 17. Rh7 {[%clk 0:01:26]}  Bd7 {[%clk 0:01:39]} 18. b3 {[%clk 0:00:48]}  b5 {[%clk 0:01:16]} 19. bxc4 {[%clk 0:00:47]}  bxc4 {[%clk 0:01:15]} 20. Nf3 {[%clk 0:00:35]}  g4 {[%clk 0:00:35]} 21. Nh4 {[%clk 0:00:34]}  Be7 {[%clk 0:00:28]} 22. Ng6 {[%clk 0:00:32]}  Kf7 {[%clk 0:00:25]} 23. Nxe7 {[%clk 0:00:32]}  Kxe7 {[%clk 0:00:21]} 24. Bxg7 {[%clk 0:00:31]}  Kf7 {[%clk 0:00:20]} 25. Be5+ {[%clk 0:00:18]}  Kg6 {[%clk 0:00:19]} 26. Rh4 {[%clk 0:00:17]}  Kg5 {[%clk 0:00:17]} 27. g3 {[%clk 0:00:15]}  Be8 {[%clk 0:00:12]} 28. e4 {[%clk 0:00:15]}  dxe4 {[%clk 0:00:10]} 29. Qd2+ {[%clk 0:00:15]}  Kg6 {[%clk 0:00:11]} 30. Qh6+ {[%clk 0:00:15]}  Kf7 {[%clk 0:00:11]} 31. Qf6# {[%clk 0:00:15]} 1-0


[Site "https://www.chess.com"]

[Event "Titled Tuesday Blitz November 29 Late 2022"]
[White "Han, Yichen"]
[Black "Bogaudinov, Rushan"]
[WhiteFideId "1054430"]
[BlackFideId "4129288"]
[WhiteElo "2323"]
[BlackElo "1997"]
[Result "1-0"]
[Round "04"]
[TimeControl "180+1"]
[Date "2022.11.30"]
[WhiteClock "0:01:23"]
[BlackClock "0:00:06"]

1. e4 {[%clk 0:03:00]}  c5 {[%clk 0:02:40]} 2. Nf3 {[%clk 0:03:00]}  Nc6 {[%clk 0:02:39]} 3. d4 {[%clk 0:02:58]}  cxd4 {[%clk 0:02:39]} 4. Nxd4 {[%clk 0:02:59]}  Nf6 {[%clk 0:02:38]} 5. Nc3 {[%clk 0:02:59]}  g6 {[%clk 0:02:37]} 6. Nxc6 {[%clk 0:02:48]}  bxc6 {[%clk 0:02:36]} 7. e5 {[%clk 0:02:48]}  Ng8 {[%clk 0:02:36]} 8. Bc4 {[%clk 0:02:44]}  Bg7 {[%clk 0:02:34]} 9. Qf3 {[%clk 0:02:44]}  e6 {[%clk 0:02:29]} 10. Ne4 {[%clk 0:02:34]}  Bxe5 {[%clk 0:02:16]} 11. Bf4 {[%clk 0:02:35]}  Bxf4 {[%clk 0:01:56]} 12. Qxf4 {[%clk 0:02:35]}  Qa5+ {[%clk 0:01:44]} 13. c3 {[%clk 0:02:32]}  d5 {[%clk 0:01:30]} 14. Nd6+ {[%clk 0:02:32]}  Ke7 {[%clk 0:01:30]} 15. Nxf7 {[%clk 0:02:31]}  dxc4 {[%clk 0:01:23]} 16. Nxh8 {[%clk 0:02:32]}  Nf6 {[%clk 0:01:20]} 17. O-O-O {[%clk 0:02:24]}  Nd5 {[%clk 0:00:46]} 18. Qf7+ {[%clk 0:02:24]}  Kd6 {[%clk 0:00:46]} 19. Qf8+ {[%clk 0:02:16]}  Kc7 {[%clk 0:00:43]} 20. Nf7 {[%clk 0:02:08]}  Bb7 {[%clk 0:00:31]} 21. Qd6+ {[%clk 0:02:08]}  Kb6 {[%clk 0:00:31]} 22. Ne5 {[%clk 0:01:51]}  Qxa2 {[%clk 0:00:20]} 23. Nd7+ {[%clk 0:01:51]}  Ka6 {[%clk 0:00:18]} 24. Nc5+ {[%clk 0:01:39]}  Kb6 {[%clk 0:00:18]} 25. Kc2 {[%clk 0:01:38]}  Rd8 {[%clk 0:00:12]} 26. Qxd8+ {[%clk 0:01:37]}  Kxc5 {[%clk 0:00:12]} 27. Qf8+ {[%clk 0:01:36]}  Kb6 {[%clk 0:00:12]} 28. Qa3 {[%clk 0:01:35]}  Qxa3 {[%clk 0:00:11]} 29. bxa3 {[%clk 0:01:36]}  Kc5 {[%clk 0:00:10]} 30. Rhe1 {[%clk 0:01:34]}  Kd6 {[%clk 0:00:10]} 31. Rd4 {[%clk 0:01:33]}  Ba6 {[%clk 0:00:11]} 32. Rde4 {[%clk 0:01:33]}  Nc7 {[%clk 0:00:11]} 33. f4 {[%clk 0:01:29]}  c5 {[%clk 0:00:11]} 34. Re5 {[%clk 0:01:29]}  Bb7 {[%clk 0:00:11]} 35. g4 {[%clk 0:01:28]}  Bd5 {[%clk 0:00:11]} 36. a4 {[%clk 0:01:24]}  h6 {[%clk 0:00:10]} 37. h4 {[%clk 0:01:24]}  Na8 {[%clk 0:00:07]} 38. h5 {[%clk 0:01:22]}  gxh5 {[%clk 0:00:07]} 39. Rxh5 {[%clk 0:01:23]}  Nb6 {[%clk 0:00:06]} 40. Rxh6 {[%clk 0:01:23]}  Nxa4 {[%clk 0:00:06]} 41. f5 {[%clk 0:01:22]}  Nb6 {[%clk 0:00:05]} 42. fxe6 {[%clk 0:01:22]}  Ke7 {[%clk 0:00:05]} 43. Rh7+ {[%clk 0:01:22]}  Ke8 {[%clk 0:00:06]} 44. e7 {[%clk 0:01:22]}  Bc6 {[%clk 0:00:04]} 45. Rh8+ {[%clk 0:01:23]}  Kf7 {[%clk 0:00:05]} 46. e8=Q+ {[%clk 0:01:22]}  Bxe8 {[%clk 0:00:06]} 47. Rhxe8 {[%clk 0:01:23]} 1-0


[Site "https://www.chess.com"]

[Event "Titled Tuesday Blitz November 29 Late 2022"]
[White "Ibarra Jerez, Jose Carlos"]
[Black "Martinez Ramirez, Lennis"]
[WhiteFideId "2226332"]
[BlackFideId "3509079"]
[WhiteElo "2638"]
[BlackElo "2439"]
[Result "0-1"]
[Round "04"]
[TimeControl "180+1"]
[Date "2022.11.30"]
[WhiteClock "0:00:01"]
[BlackClock "0:00:20"]

1. Nf3 {[%clk 0:03:00]}  d5 {[%clk 0:02:59]} 2. g3 {[%clk 0:03:01]}  Nf6 {[%clk 0:02:59]} 3. Bg2 {[%clk 0:03:02]}  Bg4 {[%clk 0:02:58]} 4. h3 {[%clk 0:03:01]}  Bxf3 {[%clk 0:02:58]} 5. Bxf3 {[%clk 0:03:01]}  Nc6 {[%clk 0:02:59]} 6. d4 {[%clk 0:02:59]}  e5 {[%clk 0:02:59]} 7. dxe5 {[%clk 0:02:56]}  Nxe5 {[%clk 0:03:00]} 8. Bg2 {[%clk 0:02:56]}  Qd7 {[%clk 0:02:59]} 9. O-O {[%clk 0:02:46]}  O-O-O {[%clk 0:02:59]} 10. Qd4 {[%clk 0:02:42]}  Nc6 {[%clk 0:02:57]} 11. Qa4 {[%clk 0:02:42]}  Bc5 {[%clk 0:02:56]} 12. c3 {[%clk 0:02:31]}  Kb8 {[%clk 0:02:55]} 13. b4 {[%clk 0:02:31]}  Bb6 {[%clk 0:02:50]} 14. Qb3 {[%clk 0:02:29]}  Rhe8 {[%clk 0:02:49]} 15. a4 {[%clk 0:02:25]}  a5 {[%clk 0:02:42]} 16. bxa5 {[%clk 0:02:18]}  Nxa5 {[%clk 0:02:39]} 17. Qc2 {[%clk 0:02:19]}  Ne4 {[%clk 0:02:32]} 18. e3 {[%clk 0:02:15]}  h5 {[%clk 0:02:29]} 19. Nd2 {[%clk 0:02:11]}  f5 {[%clk 0:02:28]} 20. c4 {[%clk 0:01:47]}  h4 {[%clk 0:02:08]} 21. Nxe4 {[%clk 0:01:40]}  fxe4 {[%clk 0:02:03]} 22. c5 {[%clk 0:01:41]}  Ba7 {[%clk 0:02:02]} 23. Rb1 {[%clk 0:01:34]}  hxg3 {[%clk 0:01:53]} 24. fxg3 {[%clk 0:01:30]}  Nc4 {[%clk 0:01:48]} 25. a5 {[%clk 0:01:08]}  Bxc5 {[%clk 0:01:48]} 26. Qc3 {[%clk 0:01:08]}  Qd6 {[%clk 0:01:43]} 27. Kh2 {[%clk 0:01:03]}  g5 {[%clk 0:01:35]} 28. Rf6 {[%clk 0:00:58]}  Re6 {[%clk 0:01:33]} 29. Rf7 {[%clk 0:00:45]}  g4 {[%clk 0:01:27]} 30. h4 {[%clk 0:00:37]}  Rh6 {[%clk 0:01:26]} 31. Rf4 {[%clk 0:00:36]}  Ne5 {[%clk 0:01:21]} 32. Qb3 {[%clk 0:00:27]}  Qc6 {[%clk 0:01:08]} 33. Bd2 {[%clk 0:00:22]}  Bd6 {[%clk 0:01:01]} 34. Rc1 {[%clk 0:00:19]}  Nc4 {[%clk 0:00:38]} 35. Rf2 {[%clk 0:00:11]}  Rxh4+ {[%clk 0:00:36]} 36. Kg1 {[%clk 0:00:12]}  Bxg3 {[%clk 0:00:37]} 37. Rf7 {[%clk 0:00:08]}  Nxd2 {[%clk 0:00:26]} 38. Rxc6 {[%clk 0:00:08]}  Nxb3 {[%clk 0:00:26]} 39. Rg6 {[%clk 0:00:09]}  Nxa5 {[%clk 0:00:25]} 40. Bf1 {[%clk 0:00:09]}  Nc4 {[%clk 0:00:23]} 41. Be2 {[%clk 0:00:06]}  Bd6 {[%clk 0:00:23]} 42. Bxg4 {[%clk 0:00:04]}  Ne5 {[%clk 0:00:22]} 43. Rfg7 {[%clk 0:00:03]}  Nxg6 {[%clk 0:00:22]} 44. Rxg6 {[%clk 0:00:04]}  Rhh8 {[%clk 0:00:21]} 45. Re6 {[%clk 0:00:02]}  Rhg8 {[%clk 0:00:20]} 46. Kf1 {[%clk 0:00:02]}  Rxg4 {[%clk 0:00:20]} 47. Rh6 {[%clk 0:00:02]}  Rf8+ {[%clk 0:00:20]} 48. Ke1 {[%clk 0:00:03]}  Bb4+ {[%clk 0:00:20]} 49. Kd1 {[%clk 0:00:03]}  Rg2 {[%clk 0:00:20]} 50. Rh1 {[%clk 0:00:01]}  Rff2 {[%clk 0:00:20]} 51. Rh8+ {[%clk 0:00:01]}  Ka7 {[%clk 0:00:20]} 0-1


[Site "https://www.chess.com"]

[Event "Titled Tuesday Blitz November 29 Late 2022"]
[White "Indjic, Aleksandar"]
[Black "Ehlvest, Jaan"]
[WhiteFideId "911925"]
[BlackFideId "4500016"]
[WhiteElo "2592"]
[BlackElo "2430"]
[Result "1/2-1/2"]
[Round "04"]
[TimeControl "180+1"]
[Date "2022.11.30"]
[WhiteClock "0:00:07"]
[BlackClock "0:00:01"]

1. e4 {[%clk 0:03:00]}  c5 {[%clk 0:02:54]} 2. Na3 {[%clk 0:03:00]}  e6 {[%clk 0:02:52]} 3. d3 {[%clk 0:02:57]}  b6 {[%clk 0:02:46]} 4. f4 {[%clk 0:02:56]}  Bb7 {[%clk 0:02:46]} 5. Nf3 {[%clk 0:02:56]}  g6 {[%clk 0:02:46]} 6. c3 {[%clk 0:02:55]}  d6 {[%clk 0:02:45]} 7. Qe2 {[%clk 0:02:52]}  Bg7 {[%clk 0:02:40]} 8. g3 {[%clk 0:02:52]}  Ne7 {[%clk 0:02:40]} 9. h4 {[%clk 0:02:51]}  h5 {[%clk 0:02:39]} 10. Nc2 {[%clk 0:02:48]}  Nd7 {[%clk 0:02:38]} 11. Bh3 {[%clk 0:02:46]}  Qc7 {[%clk 0:02:35]} 12. a4 {[%clk 0:02:45]}  a6 {[%clk 0:02:35]} 13. Bd2 {[%clk 0:02:42]}  d5 {[%clk 0:02:27]} 14. Ng5 {[%clk 0:02:40]}  Qc6 {[%clk 0:02:07]} 15. O-O {[%clk 0:02:22]}  c4 {[%clk 0:01:58]} 16. d4 {[%clk 0:02:17]}  dxe4 {[%clk 0:01:53]} 17. Nb4 {[%clk 0:02:14]}  Qc7 {[%clk 0:01:42]} 18. Nxe4 {[%clk 0:02:00]}  O-O {[%clk 0:01:38]} 19. Kh2 {[%clk 0:01:59]}  Nf5 {[%clk 0:01:38]} 20. Rae1 {[%clk 0:01:42]}  b5 {[%clk 0:01:24]} 21. axb5 {[%clk 0:01:41]}  axb5 {[%clk 0:01:24]} 22. Qf2 {[%clk 0:01:31]}  Ra4 {[%clk 0:01:20]} 23. Nc2 {[%clk 0:01:18]}  Ra2 {[%clk 0:01:08]} 24. Bc1 {[%clk 0:01:18]}  Nf6 {[%clk 0:01:02]} 25. Nxf6+ {[%clk 0:01:15]}  Bxf6 {[%clk 0:01:01]} 26. Re2 {[%clk 0:00:49]}  Rd8 {[%clk 0:01:00]} 27. Rfe1 {[%clk 0:00:49]}  Nh6 {[%clk 0:00:55]} 28. Re5 {[%clk 0:00:45]}  Bxe5 {[%clk 0:00:38]} 29. fxe5 {[%clk 0:00:45]}  Nf5 {[%clk 0:00:22]} 30. g4 {[%clk 0:00:42]}  hxg4 {[%clk 0:00:21]} 31. Bxg4 {[%clk 0:00:43]}  Ra4 {[%clk 0:00:19]} 32. h5 {[%clk 0:00:24]}  Rd7 {[%clk 0:00:19]} 33. Bxf5 {[%clk 0:00:18]}  exf5 {[%clk 0:00:17]} 34. Rg1 {[%clk 0:00:17]}  Qc6 {[%clk 0:00:16]} 35. Bf4 {[%clk 0:00:13]}  Qe4 {[%clk 0:00:14]} 36. Ne3 {[%clk 0:00:13]}  Ra2 {[%clk 0:00:14]} 37. Kg3 {[%clk 0:00:12]}  Kf8 {[%clk 0:00:08]} 38. hxg6 {[%clk 0:00:10]}  fxg6 {[%clk 0:00:08]} 39. Kh4 {[%clk 0:00:08]}  Rh7+ {[%clk 0:00:07]} 40. Kg5 {[%clk 0:00:08]}  Kf7 {[%clk 0:00:07]} 41. Qe2 {[%clk 0:00:05]}  Rh5+ {[%clk 0:00:05]} 42. Qxh5 {[%clk 0:00:05]}  gxh5 {[%clk 0:00:06]} 43. Nxf5 {[%clk 0:00:05]}  Qc6 {[%clk 0:00:02]} 44. Nd6+ {[%clk 0:00:05]}  Ke6 {[%clk 0:00:02]} 45. Kh6 {[%clk 0:00:05]}  Kd5 {[%clk 0:00:02]} 46. Rg5 {[%clk 0:00:04]}  Rxb2 {[%clk 0:00:02]} 47. e6+ {[%clk 0:00:04]}  Kxe6 {[%clk 0:00:01]} 48. Rg6+ {[%clk 0:00:05]}  Kd5 {[%clk 0:00:01]} 49. Rg5+ {[%clk 0:00:05]}  Ke6 {[%clk 0:00:01]} 50. Rg6+ {[%clk 0:00:06]}  Kd7 {[%clk 0:00:02]} 51. Rg7+ {[%clk 0:00:06]}  Ke6 {[%clk 0:00:01]} 52. Rg6+ {[%clk 0:00:07]} 1/2-1/2


[Site "https://www.chess.com"]

[Event "Titled Tuesday Blitz November 29 Late 2022"]
[White "Jaracz, Pawel"]
[Black "Yurovskykh, Oleksandr"]
[WhiteFideId "1102222"]
[BlackFideId "14134020"]
[WhiteElo "2459"]
[BlackElo "2265"]
[Result "1-0"]
[Round "04"]
[TimeControl "180+1"]
[Date "2022.11.30"]
[WhiteClock "0:00:42"]
[BlackClock "0:00:14"]

1. e4 {[%clk 0:03:00]}  e6 {[%clk 0:02:57]} 2. d3 {[%clk 0:03:00]}  c5 {[%clk 0:02:56]} 3. Nf3 {[%clk 0:02:59]}  Nc6 {[%clk 0:02:56]} 4. g3 {[%clk 0:02:59]}  Nf6 {[%clk 0:02:57]} 5. Bg2 {[%clk 0:02:59]}  d6 {[%clk 0:02:57]} 6. O-O {[%clk 0:02:59]}  Be7 {[%clk 0:02:58]} 7. c3 {[%clk 0:02:58]}  O-O {[%clk 0:02:58]} 8. Re1 {[%clk 0:02:57]}  Bd7 {[%clk 0:02:58]} 9. a3 {[%clk 0:02:51]}  Rc8 {[%clk 0:02:55]} 10. b4 {[%clk 0:02:51]}  b6 {[%clk 0:02:48]} 11. Nbd2 {[%clk 0:02:46]}  Qc7 {[%clk 0:02:40]} 12. Bb2 {[%clk 0:02:45]}  a5 {[%clk 0:02:29]} 13. b5 {[%clk 0:02:44]}  Ne5 {[%clk 0:02:29]} 14. Nxe5 {[%clk 0:02:42]}  dxe5 {[%clk 0:02:29]} 15. a4 {[%clk 0:02:38]}  Ne8 {[%clk 0:02:26]} 16. Nc4 {[%clk 0:02:37]}  f6 {[%clk 0:02:25]} 17. Bh3 {[%clk 0:02:32]}  Nd6 {[%clk 0:02:25]} 18. Qb3 {[%clk 0:02:32]}  Rfe8 {[%clk 0:02:15]} 19. Rad1 {[%clk 0:02:23]}  Nxc4 {[%clk 0:01:51]} 20. Qxc4 {[%clk 0:02:21]}  Bf8 {[%clk 0:01:50]} 21. Bc1 {[%clk 0:02:20]}  Qd6 {[%clk 0:01:36]} 22. f4 {[%clk 0:02:19]}  Kh8 {[%clk 0:01:33]} 23. fxe5 {[%clk 0:02:14]}  Qxe5 {[%clk 0:01:33]} 24. Bf4 {[%clk 0:02:12]}  Qh5 {[%clk 0:01:32]} 25. Kg2 {[%clk 0:02:04]}  Qf7 {[%clk 0:01:14]} 26. e5 {[%clk 0:02:01]}  f5 {[%clk 0:01:10]} 27. g4 {[%clk 0:01:52]}  fxg4 {[%clk 0:01:07]} 28. Bxg4 {[%clk 0:01:52]}  Rcd8 {[%clk 0:01:06]} 29. Re3 {[%clk 0:01:47]}  Bc8 {[%clk 0:01:02]} 30. Bf3 {[%clk 0:01:33]}  Bb7 {[%clk 0:00:57]} 31. Bxb7 {[%clk 0:01:33]}  Qxb7+ {[%clk 0:00:58]} 32. Qe4 {[%clk 0:01:30]}  Qxe4+ {[%clk 0:00:58]} 33. Rxe4 {[%clk 0:01:30]}  Rd7 {[%clk 0:00:56]} 34. Kf3 {[%clk 0:01:29]}  Red8 {[%clk 0:00:56]} 35. Ke2 {[%clk 0:01:29]}  Be7 {[%clk 0:00:56]} 36. Be3 {[%clk 0:01:27]}  Kg8 {[%clk 0:00:52]} 37. c4 {[%clk 0:01:27]}  Kf7 {[%clk 0:00:40]} 38. Rd2 {[%clk 0:01:26]}  Ke8 {[%clk 0:00:40]} 39. Rg4 {[%clk 0:01:16]}  g6 {[%clk 0:00:40]} 40. h4 {[%clk 0:01:15]}  Kf7 {[%clk 0:00:34]} 41. Rd1 {[%clk 0:01:12]}  Rf8 {[%clk 0:00:33]} 42. Rf1+ {[%clk 0:01:12]}  Ke8 {[%clk 0:00:32]} 43. Rxf8+ {[%clk 0:01:11]}  Kxf8 {[%clk 0:00:33]} 44. d4 {[%clk 0:01:08]}  cxd4 {[%clk 0:00:18]} 45. Bxd4 {[%clk 0:01:03]}  Bd8 {[%clk 0:00:18]} 46. Ke3 {[%clk 0:00:59]}  Kf7 {[%clk 0:00:18]} 47. Ke4 {[%clk 0:00:58]}  h5 {[%clk 0:00:18]} 48. Rf4+ {[%clk 0:00:57]}  Ke8 {[%clk 0:00:19]} 49. c5 {[%clk 0:00:56]}  bxc5 {[%clk 0:00:18]} 50. Bxc5 {[%clk 0:00:57]}  Rf7 {[%clk 0:00:17]} 51. Rxf7 {[%clk 0:00:53]}  Kxf7 {[%clk 0:00:17]} 52. b6 {[%clk 0:00:52]}  Ke8 {[%clk 0:00:14]} 53. b7 {[%clk 0:00:52]}  Bc7 {[%clk 0:00:14]} 54. Bd6 {[%clk 0:00:41]}  Kd7 {[%clk 0:00:13]} 55. b8=Q {[%clk 0:00:42]}  Bxb8 {[%clk 0:00:13]} 56. Bxb8 {[%clk 0:00:42]}  Kc6 {[%clk 0:00:14]} 57. Bd6 {[%clk 0:00:42]} 1-0


[Site "https://www.chess.com"]

[Event "Titled Tuesday Blitz November 29 Late 2022"]
[White "Karas, Marek"]
[Black "Dylag, Emilia"]
[WhiteFideId "14928558"]
[BlackFideId "21805172"]
[WhiteElo "2220"]
[BlackElo "1878"]
[Result "0-1"]
[Round "04"]
[TimeControl "180+1"]
[Date "2022.11.30"]
[WhiteClock "0:00:01"]
[BlackClock "0:00:08"]

1. b3 {[%clk 0:03:00]}  e6 {[%clk 0:02:58]} 2. Bb2 {[%clk 0:03:01]}  Nf6 {[%clk 0:02:58]} 3. e3 {[%clk 0:03:00]}  d5 {[%clk 0:02:59]} 4. g4 {[%clk 0:02:59]}  h6 {[%clk 0:02:54]} 5. Be2 {[%clk 0:02:51]}  c5 {[%clk 0:02:54]} 6. h3 {[%clk 0:02:41]}  Nc6 {[%clk 0:02:54]} 7. d3 {[%clk 0:02:29]}  Be7 {[%clk 0:02:53]} 8. Nd2 {[%clk 0:02:29]}  b6 {[%clk 0:02:46]} 9. Bf3 {[%clk 0:02:28]}  Bb7 {[%clk 0:02:47]} 10. Ne2 {[%clk 0:02:28]}  Qc7 {[%clk 0:02:44]} 11. a3 {[%clk 0:02:24]}  e5 {[%clk 0:02:22]} 12. Bg2 {[%clk 0:02:17]}  O-O-O {[%clk 0:02:12]} 13. Ng3 {[%clk 0:02:10]}  g6 {[%clk 0:02:11]} 14. Qe2 {[%clk 0:02:08]}  h5 {[%clk 0:02:03]} 15. g5 {[%clk 0:02:07]}  Nh7 {[%clk 0:02:03]} 16. h4 {[%clk 0:02:07]}  f6 {[%clk 0:02:03]} 17. gxf6 {[%clk 0:02:01]}  Nxf6 {[%clk 0:02:03]} 18. O-O-O {[%clk 0:01:59]}  Rhf8 {[%clk 0:02:00]} 19. Bh3+ {[%clk 0:01:51]}  Kb8 {[%clk 0:01:58]} 20. Kb1 {[%clk 0:01:41]}  e4 {[%clk 0:01:46]} 21. dxe4 {[%clk 0:01:37]}  d4 {[%clk 0:01:43]} 22. Nf3 {[%clk 0:01:32]}  Ne5 {[%clk 0:01:31]} 23. Nxe5 {[%clk 0:01:26]}  Qxe5 {[%clk 0:01:30]} 24. f4 {[%clk 0:01:25]}  Qc7 {[%clk 0:01:20]} 25. e5 {[%clk 0:01:22]}  Nd5 {[%clk 0:01:08]} 26. exd4 {[%clk 0:00:47]}  Nxf4 {[%clk 0:01:07]} 27. Qh2 {[%clk 0:00:43]}  Bxh1 {[%clk 0:01:04]} 28. Nxh1 {[%clk 0:00:38]}  Nxh3 {[%clk 0:01:04]} 29. Qxh3 {[%clk 0:00:38]}  cxd4 {[%clk 0:01:04]} 30. e6 {[%clk 0:00:27]}  Qf4 {[%clk 0:00:50]} 31. Qg2 {[%clk 0:00:23]}  Qf3 {[%clk 0:00:33]} 32. Qg1 {[%clk 0:00:23]}  d3 {[%clk 0:00:24]} 33. cxd3 {[%clk 0:00:16]}  Rxd3 {[%clk 0:00:24]} 34. Rc1 {[%clk 0:00:12]}  Rxb3 {[%clk 0:00:21]} 35. Qh2+ {[%clk 0:00:12]}  Ka8 {[%clk 0:00:15]} 36. Ka1 {[%clk 0:00:04]}  Rxa3+ {[%clk 0:00:04]} 37. Kb1 {[%clk 0:00:03]}  Qd3+ {[%clk 0:00:04]} 38. Qc2 {[%clk 0:00:01]}  Qxc2+ {[%clk 0:00:04]} 39. Kxc2 {[%clk 0:00:02]}  Re3 {[%clk 0:00:04]} 40. Kb1 {[%clk 0:00:01]}  Rxe6 {[%clk 0:00:04]} 41. Nf2 {[%clk 0:00:01]}  Rxf2 {[%clk 0:00:03]} 42. Rc8+ {[%clk 0:00:01]}  Kb7 {[%clk 0:00:03]} 43. Rg8 {[%clk 0:00:01]}  Rxb2+ {[%clk 0:00:03]} 44. Kxb2 {[%clk 0:00:02]}  Bf6+ {[%clk 0:00:04]} 45. Kb3 {[%clk 0:00:02]}  Bxh4 {[%clk 0:00:05]} 46. Rg7+ {[%clk 0:00:02]}  Kc6 {[%clk 0:00:05]} 47. Kc4 {[%clk 0:00:02]}  Re4+ {[%clk 0:00:05]} 48. Kd3 {[%clk 0:00:02]}  Rg4 {[%clk 0:00:05]} 49. Ke3 {[%clk 0:00:03]}  a5 {[%clk 0:00:06]} 50. Kf3 {[%clk 0:00:03]}  Kb5 {[%clk 0:00:07]} 51. Rd7 {[%clk 0:00:02]}  a4 {[%clk 0:00:07]} 52. Rd3 {[%clk 0:00:02]}  Ka5 {[%clk 0:00:07]} 53. Rd8 {[%clk 0:00:01]}  Rg3+ {[%clk 0:00:08]} 0-1


[Site "https://www.chess.com"]

[Event "Titled Tuesday Blitz November 29 Late 2022"]
[White "Kobo, Ori"]
[Black "Pham, Khoi"]
[WhiteFideId "2812320"]
[BlackFideId "1054988"]
[WhiteElo "2447"]
[BlackElo "2502"]
[Result "1-0"]
[Round "04"]
[TimeControl "180+1"]
[Date "2022.11.30"]
[WhiteClock "0:00:13"]
[BlackClock "0:00:04"]

1. Nf3 {[%clk 0:03:00]}  d5 {[%clk 0:02:57]} 2. g3 {[%clk 0:03:00]}  Nf6 {[%clk 0:02:56]} 3. Bg2 {[%clk 0:03:01]}  g6 {[%clk 0:02:56]} 4. O-O {[%clk 0:03:01]}  Bg7 {[%clk 0:02:57]} 5. c4 {[%clk 0:03:01]}  O-O {[%clk 0:02:57]} 6. Qb3 {[%clk 0:02:58]}  c6 {[%clk 0:02:55]} 7. d3 {[%clk 0:02:58]}  Nbd7 {[%clk 0:02:50]} 8. Nc3 {[%clk 0:02:54]}  dxc4 {[%clk 0:02:44]} 9. Qxc4 {[%clk 0:02:52]}  e5 {[%clk 0:02:44]} 10. a4 {[%clk 0:02:45]}  a5 {[%clk 0:02:42]} 11. Ng5 {[%clk 0:02:38]}  Nb6 {[%clk 0:02:34]} 12. Qb3 {[%clk 0:02:30]}  h6 {[%clk 0:02:33]} 13. Nge4 {[%clk 0:02:31]}  Be6 {[%clk 0:02:30]} 14. Qc2 {[%clk 0:02:31]}  Nfd5 {[%clk 0:02:26]} 15. Nc5 {[%clk 0:02:29]}  Bc8 {[%clk 0:02:24]} 16. Nxd5 {[%clk 0:02:26]}  Nxd5 {[%clk 0:02:23]} 17. Bd2 {[%clk 0:02:25]}  b6 {[%clk 0:02:20]} 18. Ne4 {[%clk 0:02:23]}  Bb7 {[%clk 0:02:20]} 19. Qb3 {[%clk 0:02:16]}  c5 {[%clk 0:02:16]} 20. Nc3 {[%clk 0:02:08]}  Nxc3 {[%clk 0:02:14]} 21. Bxc3 {[%clk 0:01:59]}  Bxg2 {[%clk 0:02:08]} 22. Kxg2 {[%clk 0:02:00]}  Qd6 {[%clk 0:02:07]} 23. Qc4 {[%clk 0:01:54]}  Rad8 {[%clk 0:02:02]} 24. Ra3 {[%clk 0:01:41]}  Qd5+ {[%clk 0:01:54]} 25. Qxd5 {[%clk 0:01:41]}  Rxd5 {[%clk 0:01:55]} 26. Rb3 {[%clk 0:01:41]}  Rd6 {[%clk 0:01:55]} 27. Rb5 {[%clk 0:01:37]}  f6 {[%clk 0:01:52]} 28. Ra1 {[%clk 0:01:27]}  Rc8 {[%clk 0:01:42]} 29. Ra3 {[%clk 0:01:19]}  Kf7 {[%clk 0:01:41]} 30. Rab3 {[%clk 0:01:18]}  Rcc6 {[%clk 0:01:41]} 31. h4 {[%clk 0:01:15]}  Ke6 {[%clk 0:01:40]} 32. f4 {[%clk 0:01:10]}  f5 {[%clk 0:01:28]} 33. Kf3 {[%clk 0:01:07]}  Bf6 {[%clk 0:01:21]} 34. Be1 {[%clk 0:00:45]}  exf4 {[%clk 0:01:09]} 35. gxf4 {[%clk 0:00:44]}  Bd8 {[%clk 0:00:58]} 36. Bf2 {[%clk 0:00:34]}  Bf6 {[%clk 0:00:35]} 37. e4 {[%clk 0:00:30]}  Bd8 {[%clk 0:00:28]} 38. e5 {[%clk 0:00:24]}  Rd7 {[%clk 0:00:22]} 39. Rc3 {[%clk 0:00:22]}  g5 {[%clk 0:00:19]} 40. hxg5 {[%clk 0:00:20]}  hxg5 {[%clk 0:00:20]} 41. d4 {[%clk 0:00:19]}  gxf4 {[%clk 0:00:16]} 42. Kxf4 {[%clk 0:00:15]}  Rg7 {[%clk 0:00:12]} 43. dxc5 {[%clk 0:00:13]}  Rg4+ {[%clk 0:00:11]} 44. Kf3 {[%clk 0:00:14]}  Rxa4 {[%clk 0:00:09]} 45. cxb6 {[%clk 0:00:12]}  Rxc3+ {[%clk 0:00:09]} 46. bxc3 {[%clk 0:00:13]}  Ra3 {[%clk 0:00:04]} 47. Bd4 {[%clk 0:00:13]}  a4 {[%clk 0:00:01]} 48. b7 {[%clk 0:00:13]}  Bc7 {[%clk 0:00:02]} 49. b8=Q {[%clk 0:00:12]}  Bxb8 {[%clk 0:00:03]} 50. Rxb8 {[%clk 0:00:13]}  Rb3 {[%clk 0:00:03]} 51. Rxb3 {[%clk 0:00:12]}  axb3 {[%clk 0:00:04]} 52. c4 {[%clk 0:00:13]} 1-0


[Site "https://www.chess.com"]